bitfinex/quotes_SOLUSD_20240827
["timestamp","ask_amount","ask_price","bid_price","bid_amount"]
[1724737410401,9.67137237,159.79,159.75,6.2596]
[1724737410628,45.0,159.78,159.76,6.2593]
[1724737410839,45.0,159.79,159.76,6.2593]
[1724737411629,45.0,159.79,159.74,15.6496]
[1724737411841,46.56468256,159.79,159.74,15.6496]
[1724737412736,46.56468256,159.79,159.75,6.2597]
[1724737412909,46.56468256,159.79,159.74,15.6496]
[1724737413409,9.67137237,159.78,159.74,15.6496]
[1724737413607,45.0,159.77,159.74,15.6496]
[1724737414843,45.0,159.77,159.74,21.9096]
[1724737416037,45.0,159.77,159.75,6.2597]
[1724737419741,1.56484992,159.8,159.75,6.2597]
[1724737419963,56.23622229,159.8,159.75,6.2597]
[1724737421961,62.49402229,159.8,159.75,6.2597]
[1724737424257,51.2578,159.8,159.75,7.51155313]
[1724737425261,51.2578,159.8,159.75,6.2597]
[1724737427357,45.0,159.8,159.76,6.2593]
[1724737429239,45.0,159.8,159.77,1.25172398]
[1724737429647,9.67137237,159.78,159.74,15.6496]
[1724737429851,45.0,159.77,159.74,21.9097]
[1724737431270,9.67137237,159.8,159.75,6.2596]
[1724737431440,45.0,159.79,159.75,6.2596]
[1724737431639,45.0,159.79,159.76,6.2592]
[1724737431858,29.67137237,159.82,159.76,6.2592]
[1724737432037,45.0,159.81,159.76,6.2592]
[1724737432760,45.0,159.81,159.77,1.25168768]
[1724737433649,45.0,159.81,159.77,7.51058768]
[1724737433843,45.0,159.81,159.78,1.25161852]
[1724737434050,6.2566,159.84,159.78,6.2585]
[1724737434253,0.8160822,159.85,159.8,15.6442]
[1724737434447,0.8160822,159.85,159.8,16.89543392]
[1724737434639,0.8160822,159.85,159.8,15.6442]
[1724737435539,0.8160822,159.85,159.81,6.257]
[1724737436140,10.48745457,159.85,159.81,7.50834473]
[1724737436357,10.48745457,159.85,159.76,22.1346]
[1724737436358,9.67137237,159.83,159.72,22.1346]
[1724737436540,76.86518607,159.84,159.73,6.2601]
[1724737436541,15.92957237,159.79,159.73,6.2601]
[1724737436759,46.56491634,159.78,159.73,6.2601]
[1724737437067,9.67137237,159.77,159.72,15.6519]
[1724737437368,45.0,159.76,159.72,21.9128]
[1724737439062,45.0,159.76,159.72,15.6519]
[1724737440666,45.0,159.76,159.72,21.9128]
[1724737442580,45.0,159.77,159.72,21.9128]
[1724737445079,51.259,159.77,159.72,21.9128]
[1724737446067,16.6155,159.84,159.75,9.67137237]
[1724737446272,16.6155,159.84,159.8,6.2577]
[1724737446479,0.8160822,159.85,159.79,6.2581]
[1724737446645,0.8160822,159.85,159.8,6.2575]
[1724737446646,9.67137237,159.84,159.8,6.2575]
[1724737447543,11.23581169,159.84,159.8,6.2575]
[1724737448163,45.0,159.83,159.8,6.2575]
[1724737448665,45.0,159.83,159.81,6.2574]
[1724737449253,0.8160822,159.85,159.81,6.2574]
[1724737449668,20.8160822,159.85,159.81,6.2574]
[1724737450474,20.8160822,159.85,159.82,6.2569]
[1724737450769,45.0,159.84,159.82,6.2569]
[1724737450969,0.8160822,159.85,159.83,6.2566]
[1724737455048,0.8160822,159.85,159.84,6.2562]
[1724737457473,9.67137237,159.9,159.84,6.2562]
[1724737457474,381.3,159.99,159.85,15.637]
[1724737457772,6.2513,159.97,159.9,15.6338]
[1724737457973,6.2513,159.97,159.9,16.88438818]
[1724737458278,6.2508,159.98,159.9,16.88438818]
[1724737458576,6.2508,159.98,159.92,6.2531]
[1724737459660,6.2512,159.97,159.91,17.17532817]
[1724737459874,6.2512,159.97,159.91,1.2505558]
[1724737460277,3.993,160.0,159.93,15.6314]
[1724737460456,1.56283278,159.99,159.93,15.6314]
[1724737460651,1.56296259,159.98,159.93,15.6314]
[1724737461073,1.56299244,159.99,159.93,15.6314]
[1724737461552,10.243,160.0,159.94,6.2519]
[1724737461962,10.243,160.0,159.94,7.50220314]
[1724737462166,10.243,160.0,159.94,6.2519]
[1724737462374,1.56287842,159.99,159.94,6.2519]
[1724737463182,1.56298638,159.98,159.93,15.6314]
[1724737463386,1.56298638,159.98,159.88,22.2275]
[1724737463387,6.2512,159.97,159.91,6.2531]
[1724737463682,65.0,159.99,159.89,15.6351]
[1724737463683,96.87781003,159.96,159.89,15.6351]
[1724737463858,1.56333702,159.95,159.89,15.6351]
[1724737464264,27.81523702,159.95,159.9,6.2538]
[1724737464569,45.0,159.94,159.89,21.8893]
[1724737464753,1.56344525,159.93,159.89,21.8893]
[1724737465153,25.62642672,159.92,159.84,15.6403]
[1724737465366,45.0,159.91,159.84,15.6403]
[1724737465883,46.56374024,159.91,159.84,15.6403]
[1724737466081,45.0,159.91,159.85,1.25099017]
[1724737466264,45.0,159.91,159.84,15.6403]
[1724737466471,45.0,159.91,159.85,1.25099017]
[1724737466768,45.0,159.91,159.84,15.6403]
[1724737467362,45.0,159.91,159.85,1.2508118]
[1724737467664,45.0,159.91,159.88,6.2546]
[1724737467984,45.0,159.92,159.88,6.2546]
[1724737468177,45.0,159.93,159.88,6.2546]
[1724737468776,45.0,159.93,159.88,7.50536968]
[1724737470180,45.0,159.93,159.88,6.2546]
[1724737471675,45.0,159.93,159.88,7.50532459]
[1724737471869,45.0,159.93,159.89,6.2542]
[1724737472269,1.56340582,159.92,159.87,15.6375]
[1724737473089,1.56340582,159.92,159.88,6.2546]
[1724737473282,45.0,159.93,159.89,6.2542]
[1724737473669,51.2523,159.94,159.89,6.2542]
[1724737473871,52.8157083,159.94,159.89,6.2542]
[1724737474069,20.0,159.93,159.89,6.2542]
[1724737474388,45.0,159.92,159.89,6.2542]
[1724737475972,30.31461855,159.96,159.9,7.50438002]
[1724737476170,20.0,159.95,159.9,6.2537]
[1724737477272,45.0,159.94,159.9,6.2537]
[1724737478402,69.06301855,159.94,159.89,6.2542]
[1724737478566,1.56319847,159.93,159.89,6.2542]
[1724737478990,70.62642816,159.94,159.89,6.2542]
[1724737479171,76.87882816,159.94,159.89,6.2542]
[1724737479688,51.2524,159.94,159.89,6.2542]
[1724737480979,52.81580911,159.94,159.89,6.2542]
[1724737481292,6.2527,159.93,159.87,32.11013518]
[1724737481485,45.0,159.92,159.87,30.8594]
[1724737481699,20.0,159.97,159.87,30.8594]
[1724737481700,10.1203,160.0,159.9,15.6345]
[1724737481876,1.56301467,159.98,159.88,44.06301855]
[1724737482075,1.56301467,159.98,159.93,6.2527]
[1724737483179,21.56301467,159.98,159.94,6.2521]
[1724737483802,45.0,159.97,159.94,6.2521]
[1724737484102,1.56319269,159.96,159.93,6.2526]
[1724737484299,1.56329278,159.95,159.93,6.2526]
[1724737484809,45.0,159.97,159.94,6.2523]
[1724737484981,46.56319189,159.97,159.94,6.2523]
[1724737487299,45.0,159.97,159.94,6.2523]
[1724737488797,20.0,159.98,159.94,15.63]
[1724737489103,20.0,159.98,159.97,6.2511]
[1724737489284,3.993,160.0,159.97,6.2511]
[1724737489492,1.56280366,159.99,159.98,6.2506]
[1724737489691,20.0,159.99,159.97,6.2511]
[1724737490804,45.0,159.98,159.97,6.2511]
[1724737492707,20.0,159.99,159.97,6.2511]
[1724737493006,23.993,160.0,159.97,6.2511]
[1724737493194,45.0,159.99,159.97,6.2511]
[1724737496178,45.0,159.99,159.96,21.8794]
[1724737496378,46.56285245,159.99,159.96,21.8794]
[1724737496792,45.0,159.99,159.96,21.8794]
[1724737499287,45.0,159.99,159.97,6.2509]
[1724737502719,46.56281411,159.99,159.97,6.2509]
[1724737503600,45.0,159.99,159.97,6.2509]
[1724737504610,20.0,160.0,159.98,6.2507]
[1724737504918,20.8160822,160.01,159.98,6.2507]
[1724737505113,45.0,160.0,159.98,6.2507]
[1724737508218,20.8160822,160.01,159.95,9.6211946]
[1724737508219,20.8160822,160.01,159.99,15.6259]
[1724737508519,0.8160822,160.01,160.0,6.25]
[1724737509092,0.8160822,160.01,160.0,17.12104447]
[1724737510098,0.8160822,160.01,160.0,7.49984987]
[1724737510436,0.8160822,160.01,160.0,17.12104447]
[1724737512199,0.8160822,160.01,160.0,6.25]
[1724737512898,0.8160822,160.01,159.96,15.6288]
[1724737513122,2.37868004,160.01,159.96,21.88]
[1724737513332,47.37868004,160.01,159.97,6.2511]
[1724737513502,45.8160822,160.01,159.97,6.2511]
[1724737514519,47.37870952,160.01,159.97,6.2511]
[1724737514820,6.25,160.0,159.96,15.6288]
[1724737515007,46.56282327,159.99,159.96,15.6288]
[1724737515810,45.0,159.99,159.96,15.6288]
[1724737516009,1.56282643,159.98,159.96,15.6288]
[1724737516210,45.0,159.99,159.96,15.6288]
[1724737516409,26.62952139,159.98,159.86,16.565]
[1724737516611,9.6211946,159.92,159.86,16.565]
[1724737516907,46.56354779,159.91,159.86,6.2553]
[1724737517311,52.81704779,159.91,159.84,15.6401]
[1724737517514,45.0,159.91,159.87,6.255]
[1724737517827,45.0,159.92,159.86,6.2551]
[1724737518025,52.81659635,159.92,159.84,15.6401]
[1724737519830,6.2535,159.91,159.84,15.6401]
[1724737520010,6.2547,159.88,159.82,6.2569]
[1724737520213,46.56401955,159.87,159.82,6.2569]
[1724737522024,45.0,159.87,159.83,6.2565]
[1724737522337,15.4455,159.9,159.86,6.2554]
[1724737522623,45.0,159.89,159.84,7.50703978]
[1724737522830,45.0,159.89,159.84,6.2558]
[1724737523033,46.56374178,159.89,159.85,6.2557]
[1724737524020,45.0,159.89,159.85,6.2557]
[1724737524731,46.56380282,159.89,159.85,6.2557]
[1724737527557,46.56380282,159.89,159.84,6.2562]
[1724737527832,6.2554,159.86,159.8,21.9019]
[1724737528007,46.56416706,159.85,159.81,6.2574]
[1724737528211,46.56416706,159.85,159.8,21.9022]
[1724737528613,76.90144945,159.85,159.8,15.6445]
[1724737528909,70.64554945,159.85,159.8,15.6445]
[1724737529107,45.0,159.85,159.81,6.2573]
[1724737529512,45.0,159.86,159.81,6.2573]
[1724737529714,45.0,159.86,159.82,6.2568]
[1724737530216,1.56417659,159.85,159.82,6.2568]
[1724737530716,1.56417659,159.85,159.8,21.9019]
[1724737530924,46.5641881,159.86,159.81,6.2573]
[1724737531120,1.56423594,159.85,159.75,31.2973]
[1724737531318,45.64561833,159.85,159.77,15.6474]
[1724737531639,51.2566,159.84,159.79,6.2581]
[1724737531845,45.0,159.84,159.8,6.2577]
[1724737532521,46.56439213,159.84,159.8,6.2577]
[1724737533436,46.56439213,159.84,159.79,6.2581]
[1724737533639,24.08138239,159.81,159.73,15.6509]
[1724737533935,6.2587,159.78,159.73,21.9113]
[1724737534137,30.33958239,159.79,159.73,21.9113]
[1724737534507,51.2587,159.78,159.73,15.6509]
[1724737534719,1.56502039,159.77,159.73,15.6509]
[1724737534914,1.56502039,159.77,159.73,21.9112]
[1724737535133,45.0,159.78,159.73,21.9112]
[1724737535333,46.5650178,159.78,159.73,21.9112]
[1724737536439,46.5650178,159.78,159.74,6.2601]
[1724737536942,70.64640019,159.78,159.72,6.2606]
[1724737537123,16.1755,159.77,159.72,6.2606]
[1724737537435,46.56518765,159.76,159.72,6.2606]
[1724737537842,6.2605,159.73,159.65,15.6585]
[1724737538022,1.56552816,159.72,159.68,6.2624]
[1724737538216,25.64691055,159.72,159.65,15.6585]
[1724737538418,45.0,159.71,159.66,6.2632]
[1724737538635,16.1755,159.69,159.61,15.663]
[1724737538835,45.0,159.68,159.64,6.2639]
[1724737539142,16.1755,159.69,159.65,1.25265036]
[1724737539520,45.0,159.71,159.65,1.25265036]
[1724737539714,45.0,159.71,159.68,6.2623]
[1724737541933,6.4223,159.77,159.69,1.25225109]
[1724737542237,6.4223,159.77,159.67,39.73778239]
[1724737542238,1.56523825,159.76,159.67,39.73778239]
[1724737542826,7.82463825,159.76,159.7,6.2616]
[1724737543257,65.0,159.75,159.7,6.2616]
[1724737544947,65.0,159.75,159.71,6.2613]
[1724737545461,65.0,159.75,159.69,6.2618]
[1724737545747,1.56526919,159.74,159.69,6.2618]
[1724737545930,71.2597,159.75,159.67,15.6564]
[1724737545931,71.2601,159.75,159.67,15.6564]
[1724737546428,71.2601,159.75,159.67,16.90872076]
[1724737546628,71.2601,159.75,159.68,1.25235444]
[1724737546846,71.2601,159.75,159.67,15.6564]
[1724737547344,71.2601,159.75,159.68,1.25232814]
[1724737547764,71.2601,159.75,159.69,6.2621]
[1724737548067,1.56542656,159.74,159.69,6.2621]
[1724737548227,71.2601,159.75,159.69,6.2621]
[1724737550954,1.56544147,159.74,159.69,6.2621]
[1724737551636,71.2601,159.75,159.69,6.2621]
[1724737551836,25.64682337,159.74,159.67,15.6564]
[1724737552041,6.261,159.72,159.67,15.6564]
[1724737552240,46.56566677,159.71,159.67,15.6564]
[1724737552440,45.0,159.71,159.67,21.9191]
[1724737553139,45.0,159.71,159.67,15.6564]
[1724737553342,20.0,159.75,159.7,15.6543]
[1724737553660,45.0,159.74,159.7,15.6543]
[1724737554843,45.0,159.74,159.71,6.2612]
[1724737556057,45.0,159.74,159.7,21.9159]
[1724737556543,1.56530727,159.73,159.7,21.9159]
[1724737557961,1.56530727,159.73,159.7,15.6543]
[1724737558552,46.56543517,159.74,159.7,15.6543]
[1724737558756,46.56543493,159.74,159.7,15.6543]
[1724737560133,45.0,159.74,159.7,21.9159]
[1724737560330,45.0,159.74,159.7,15.6543]
[1724737560840,45.0,159.74,159.71,6.2612]
[1724737562547,45.0,159.74,159.7,21.916]
[1724737562748,1.56532113,159.73,159.67,15.6572]
[1724737563057,6.2611,159.72,159.67,21.92]
[1724737563259,46.56566543,159.71,159.67,21.92]
[1724737564738,45.0,159.71,159.67,21.92]
[1724737564935,6.5487891,159.74,159.68,1.25248111]
[1724737565175,6.5487891,159.74,159.7,15.654]
[1724737565455,22.5978,159.77,159.7,15.654]
[1724737565652,20.0,159.76,159.7,15.654]
[1724737565853,21.56523045,159.76,159.7,15.654]
[1724737566055,27.82493045,159.76,159.7,21.9156]
[1724737566763,45.0,159.75,159.7,21.9156]
[1724737567438,51.2597,159.75,159.7,21.9156]
[1724737567633,7.82546349,159.74,159.7,15.654]
[1724737567835,45.0,159.73,159.7,15.654]
[1724737568659,46.56542763,159.73,159.7,15.654]
[1724737570260,46.56542763,159.73,159.63,31.3213]
[1724737570467,16.61808839,159.72,159.67,6.2625]
[1724737570643,45.0,159.71,159.68,6.2624]
[1724737570844,1.56558891,159.7,159.68,6.2624]
[1724737571245,45.0,159.71,159.68,6.2624]
[1724737574471,1.56558701,159.7,159.66,21.9208]
[1724737574677,6.2621,159.69,159.63,15.661]
[1724737574853,1.56577538,159.68,159.64,6.2637]
[1724737575061,46.56577538,159.68,159.64,6.2637]
[1724737575363,1.56595008,159.67,159.64,6.2637]
[1724737575548,45.0,159.68,159.64,6.2637]
[1724737576746,51.2628,159.68,159.63,15.661]
[1724737576948,1.56595258,159.67,159.63,15.661]
[1724737578148,31.91023497,159.67,159.63,15.661]
[1724737578468,45.0,159.66,159.62,6.2646]
[1724737578769,1.56615683,159.65,159.62,6.2646]
[1724737580855,1.56615683,159.65,159.61,6.2652]
[1724737581065,14.47313002,159.64,159.6,15.664]
[1724737581376,45.0,159.63,159.6,15.664]
[1724737581583,1.56640826,159.62,159.58,6.2664]
[1724737587365,7.83130826,159.62,159.57,6.2668]
[1724737587567,45.0,159.61,159.57,6.2668]
[1724737587767,1.56664394,159.6,159.57,6.2668]
[1724737591878,15.5262,159.59,159.56,15.6671]
[1724737592075,46.5667818,159.58,159.56,15.6671]
[1724737593187,46.5667818,159.58,159.56,21.9342]
[1724737593881,45.0,159.58,159.56,21.9342]
[1724737594385,15.5262,159.59,159.57,6.2667]
[1724737595487,1.56670382,159.58,159.56,21.9342]
[1724737595679,46.56670382,159.58,159.56,21.9342]
[1724737596570,45.0,159.58,159.56,21.9342]
[1724737598659,15.5262,159.59,159.57,6.2668]
[1724737599079,15.5262,159.63,159.59,15.6649]
[1724737599271,20.0,159.7,159.6,1.25306393]
[1724737599477,6.2625,159.68,159.62,6.2645]
[1724737600374,6.263,159.67,159.62,6.2645]
[1724737600682,20.0,159.66,159.62,6.2645]
[1724737600892,20.0,159.66,159.61,21.9276]
[1724737600893,72.82946692,159.66,159.61,21.9276]
[1724737601064,6.2637,159.65,159.61,15.6624]
[1724737601265,46.56638865,159.64,159.6,6.2656]
[1724737603366,45.0,159.64,159.6,6.2656]
[1724737603591,46.56630061,159.64,159.6,6.2656]
[1724737606400,45.0,159.64,159.61,6.2652]
[1724737606589,46.56628967,159.65,159.61,6.2652]
[1724737608383,45.0,159.65,159.61,6.2652]
[1724737608581,20.0,159.68,159.64,6.264]
[1724737609464,21.7663,159.69,159.66,6.2632]
[1724737609465,15.5262,159.69,159.66,6.2632]
[1724737609875,1.56578833,159.68,159.65,15.6592]
[1724737610582,15.5262,159.69,159.65,15.6592]
[1724737610793,21.7883,159.69,159.65,15.6592]
[1724737610972,45.0,159.68,159.65,15.6592]
[1724737611173,1.56593318,159.67,159.65,15.6592]
[1724737611497,45.0,159.68,159.65,15.6592]
[1724737612784,51.2625,159.68,159.62,21.9266]
[1724737613026,7.82931189,159.67,159.62,21.9266]
[1724737613178,45.0,159.66,159.62,21.9266]
[1724737613490,1.56610433,159.65,159.62,21.9266]
[1724737615699,1.56610433,159.65,159.62,15.6621]
[1724737616004,52.82963549,159.66,159.62,15.6621]
[1724737618002,52.82963549,159.66,159.62,21.9269]
[1724737619230,6.2637,159.65,159.59,15.665]
[1724737619394,6.2637,159.65,159.6,6.2653]
[1724737619395,46.56627902,159.64,159.6,6.2653]
[1724737619715,45.0,159.64,159.61,6.2652]
[1724737620026,45.0,159.65,159.61,6.2652]
[1724737620317,46.56627598,159.65,159.61,6.2652]
[1724737620815,1.56627748,159.64,159.61,6.2652]
[1724737621033,46.56627606,159.65,159.61,6.2652]
[1724737621916,1.56627745,159.64,159.61,6.2652]
[1724737622295,46.56627632,159.65,159.61,6.2652]
[1724737622800,6.2617,159.7,159.65,6.2636]
[1724737624217,45.0,159.68,159.65,6.2636]
[1724737624516,12.5827,159.71,159.66,6.2632]
[1724737625422,14.14843834,159.71,159.66,6.2632]
[1724737625596,14.14844151,159.71,159.66,6.2632]
[1724737625797,46.56574151,159.7,159.66,6.2632]
[1724737627916,45.0,159.7,159.66,6.2632]
[1724737628114,1.56569034,159.69,159.66,6.2632]
[1724737630008,1.56569034,159.69,159.65,6.2636]
[1724737631809,51.2617,159.7,159.65,6.2636]
[1724737632115,52.82741774,159.7,159.65,6.2636]
[1724737633501,6.2621,159.69,159.64,6.264]
[1724737633701,45.0,159.68,159.64,6.264]
[1724737633899,1.56593239,159.67,159.64,6.264]
[1724737634826,45.0,159.68,159.64,6.264]
[1724737635419,52.8284271,159.68,159.64,6.264]
[1724737635627,1.5659271,159.67,159.6,15.664]
[1724737635833,47.74433167,159.67,159.6,15.664]
[1724737636130,51.2633,159.66,159.61,6.2649]
[1724737636299,1.56613277,159.65,159.61,6.2649]
[1724737637304,1.56613277,159.65,159.6,21.9296]
[1724737637305,7.82983277,159.65,159.6,21.9296]
[1724737637506,46.56628089,159.64,159.6,21.9296]
[1724737638824,46.56628089,159.64,159.61,6.2652]
[1724737639022,45.0,159.65,159.61,6.2652]
[1724737639327,1.56627765,159.64,159.61,6.2652]
[1724737641421,1.56627765,159.64,159.6,15.664]
[1724737641614,27.83037765,159.64,159.57,15.6669]
[1724737641814,54.65760457,159.63,159.57,21.9333]
[1724737642018,1.56656399,159.62,159.57,21.9333]
[1724737642826,7.83146399,159.62,159.57,21.9333]
[1724737643136,45.0,159.61,159.57,21.9333]
[1724737643430,1.56656594,159.6,159.57,21.9333]
[1724737645115,1.56656594,159.6,159.57,15.6669]
[1724737645827,52.83185289,159.61,159.57,15.6669]
[1724737646035,45.0,159.61,159.57,21.9336]
[1724737646234,45.0,159.62,159.57,21.9336]
[1724737646625,45.0,159.62,159.57,25.32450457]
[1724737646934,20.0,159.64,159.52,85.94811828]
[1724737646935,20.0,159.64,159.59,25.32190457]
[1724737647116,6.2987,159.65,159.59,25.32190457]
[1724737647645,1.56628987,159.64,159.6,6.2655]
[1724737648319,46.56628987,159.64,159.6,6.2655]
[1724737648724,52.83038987,159.64,159.59,21.9303]
[1724737648926,6.2645,159.63,159.59,15.6643]
[1724737649133,46.56651831,159.62,159.59,15.6643]
[1724737650131,45.0,159.62,159.59,15.6643]
[1724737650312,45.0,159.62,159.59,21.9302]
[1724737650522,45.0,159.63,159.59,21.9302]
[1724737652227,45.0,159.63,159.6,6.2655]
[1724737652533,45.0,159.64,159.61,6.2652]
[1724737652834,29.32155898,159.67,159.62,6.2648]
[1724737653141,21.56615404,159.66,159.62,6.2648]
[1724737654040,26.2633,159.66,159.62,6.2648]
[1724737654439,45.0,159.65,159.62,6.2648]
[1724737654922,45.0,159.65,159.61,6.2652]
[1724737659218,46.56623932,159.65,159.61,6.2652]
[1724737659419,1.56625018,159.64,159.61,6.2652]
[1724737659822,45.0,159.65,159.61,6.2652]
[1724737660744,1.56617223,159.64,159.61,6.2652]
[1724737660953,45.0,159.65,159.61,6.2652]
[1724737661965,46.5661279,159.65,159.61,6.2652]
[1724737662252,1.56616358,159.64,159.61,6.2652]
[1724737662451,46.56616315,159.65,159.61,6.2652]
[1724737662828,1.56616364,159.64,159.61,6.2652]
[1724737664522,45.0,159.65,159.61,6.2652]
[1724737668732,20.0,159.66,159.62,1.25289756]
[1724737669133,20.0,159.67,159.62,1.25289756]
[1724737669352,45.0,159.66,159.62,1.25289756]
[1724737669741,45.0,159.66,159.61,25.32000457]
[1724737670252,1.56598077,159.65,159.62,6.2647]
[1724737674467,46.56617514,159.66,159.62,6.2647]
[1724737674766,45.0,159.66,159.62,6.2647]
[1724737676459,6.2621,159.7,159.65,6.2637]
[1724737676766,15.5801,159.71,159.66,6.2632]
[1724737676942,6.2609,159.72,159.66,6.2632]
[1724737677141,6.2609,159.72,159.67,6.2627]
[1724737677447,22.1161229,159.75,159.68,1.25253043]
[1724737677659,6.5360229,159.75,159.71,6.2612]
[1724737677847,20.0,159.79,159.74,6.2601]
[1724737677848,15.5801,159.79,159.74,6.2601]
[1724737678545,6.2578,159.8,159.75,6.2597]
[1724737679267,20.0,159.79,159.75,6.2597]
[1724737679843,6.2578,159.8,159.75,6.2597]
[1724737680283,6.2574,159.81,159.75,6.2597]
[1724737681177,21.56483824,159.8,159.76,6.2592]
[1724737682277,21.56483824,159.8,159.74,6.2597]
[1724737682454,21.56483824,159.8,159.75,6.2596]
[1724737682960,45.0,159.79,159.75,6.2596]
[1724737689470,45.0,159.79,159.76,15.6483]
[1724737690790,45.0,159.79,159.77,6.2588]
[1724737693697,6.257,159.82,159.77,6.2588]
[1724737693989,65.0,159.81,159.77,6.2588]
[1724737695275,66.56464442,159.81,159.77,6.2588]
[1724737697402,65.0,159.81,159.78,6.2584]
[1724737698706,65.0,159.81,159.77,6.2589]
[1724737698881,1.56455127,159.8,159.77,6.2589]
[1724737701577,1.56455127,159.8,159.76,15.6483]
[1724737702205,1.56477258,159.79,159.76,15.6483]
[1724737702507,46.56477258,159.79,159.76,15.6483]
[1724737703208,52.82297258,159.79,159.73,21.9114]
[1724737704288,52.82297258,159.79,159.74,6.2601]
[1724737706883,45.0,159.79,159.76,6.2591]
[1724737707090,45.0,159.8,159.76,6.2591]
[1724737707822,1.56475933,159.79,159.73,15.6512]
[1724737708805,1.56475933,159.79,159.75,6.2597]
[1724737709709,1.56475933,159.79,159.76,6.2593]
[1724737709915,45.0,159.8,159.76,6.2593]
[1724737710294,1.5647559,159.79,159.76,6.2593]
[1724737711313,45.0,159.8,159.76,6.2593]
[1724737712498,1.5647547,159.79,159.76,6.2593]
[1724737713796,45.0,159.8,159.76,6.2593]
[1724737714000,45.0,159.8,159.76,9.65760457]
[1724737714308,45.0,159.8,159.78,6.2585]
[1724737715721,6.2567,159.83,159.78,6.2585]
[1724737715896,45.0,159.82,159.78,6.2585]
[1724737717199,46.56454932,159.82,159.78,6.2585]
[1724737721920,52.82164932,159.82,159.77,6.2589]
[1724737723820,52.82164932,159.82,159.75,15.6486]
[1724737723821,26.2577,159.81,159.75,15.6486]
[1724737724124,46.56484328,159.8,159.75,15.6486]
[1724737724325,1.56484333,159.79,159.75,15.6486]
[1724737724501,1.56484333,159.79,159.76,6.2592]
[1724737725908,45.0,159.8,159.76,6.2592]
[1724737726219,1.56483937,159.79,159.76,6.2592]
[1724737727106,46.5648246,159.8,159.76,6.2592]
[1724737728025,1.56482641,159.79,159.76,6.2592]
[1724737728409,45.0,159.8,159.77,6.2588]
[1724737728612,45.0,159.8,159.78,6.2584]
[1724737730428,6.2567,159.83,159.78,6.2584]
[1724737730630,65.0,159.82,159.78,6.2584]
[1724737732359,1.56455737,159.81,159.78,6.2584]
[1724737737009,1.56455737,159.81,159.75,15.6486]
[1724737738833,7.82205737,159.81,159.76,6.2593]
[1724737739134,45.0,159.8,159.76,6.2593]
[1724737739431,1.56483121,159.79,159.76,6.2593]
[1724737739637,46.56482332,159.8,159.76,6.2593]
[1724737740319,45.0,159.8,159.76,6.2593]
[1724737740833,45.0,159.8,159.77,6.2589]
[1724737741716,26.257,159.82,159.77,6.2589]
[1724737741915,45.0,159.81,159.77,6.2589]
[1724737742107,20.0,159.82,159.78,6.2584]
[1724737742308,6.53072621,159.85,159.79,10.90917991]
[1724737742535,6.2558,159.86,159.81,6.2573]
[1724737743035,6.2558,159.85,159.81,6.2573]
[1724737743332,6.2558,159.85,159.8,21.9023]
[1724737743936,20.0,159.84,159.8,21.9023]
[1724737744526,6.2555,159.86,159.81,6.2574]
[1724737744718,45.0,159.85,159.81,6.2574]
[1724737747438,29.40182841,159.88,159.82,1.25138938]
[1724737747621,29.40182841,159.88,159.77,47.6647]
[1724737747622,20.0,159.87,159.84,6.2558]
[1724737748021,20.0,159.87,159.83,21.898]
[1724737748740,45.0,159.86,159.83,21.898]
[1724737748934,1.56405468,159.85,159.81,6.2573]
[1724737749115,45.0,159.86,159.82,6.257]
[1724737749823,1.56417851,159.85,159.82,6.257]
[1724737750845,45.0,159.86,159.82,6.257]